fUSD/lending_fUSD_20250609
["ID","MTS","AMOUNT","RATE_DAILY","PERIOD"]
[365100772,1749466251115,-480.0,0.00021917,2]
[365100773,1749466251124,-480.0,0.00021917,2]
[365100774,1749466251134,-480.0,0.00021917,2]
[365100775,1749466251143,-695.67,0.00021917,2]
[365100776,1749466251153,-480.0,0.00021917,2]
[365100777,1749466251162,-314.79892736,0.00021917,2]
[365100778,1749466251171,-480.0,0.00021917,2]
[365100779,1749466251180,-480.0,0.00021917,2]
[365100780,1749466251190,-480.0,0.00021917,2]
[365100781,1749466251199,-480.0,0.00021917,2]
[365100782,1749466251208,-480.0,0.00021917,2]
[365100783,1749466251217,-357.99921344,0.00021917,2]
[365100784,1749466251226,-480.0,0.00021917,2]
[365100785,1749466251237,-480.0,0.00021917,2]
[365100786,1749466251247,-480.0,0.00021917,2]
[365100787,1749466251257,-1004.09,0.00021917,2]
[365100788,1749466251267,-1137.84,0.00021917,2]
[365100789,1749466251276,-500.0,0.00021917,2]
[365100790,1749466251285,-500.0,0.00021917,2]
[365100791,1749466251295,-500.0,0.00021917,2]
[365100792,1749466251304,-511.87863338,0.00021917,2]
[365100793,1749466251314,-495.53230249,0.00021917,2]
[365100794,1749466251323,-480.0,0.00021917,2]
[365100795,1749466251332,-480.0,0.00021917,2]
[365100796,1749466251342,-500.0,0.00021917,2]
[365100797,1749466251351,-480.0,0.00021917,2]
[365100798,1749466251360,-480.0,0.00021917,2]
[365100799,1749466251370,-1468.79,0.00021917,2]
[365100800,1749466251380,-583.54533055,0.00021917,2]
[365100801,1749466251389,-482.95154975,0.00021917,2]
[365100802,1749466251399,-480.0,0.00021917,2]
[365100803,1749466251409,-426.03444372,0.00021917,2]
[365100804,1749466251419,-538.35,0.00021917,2]
[365100805,1749466251428,-480.0,0.00021917,2]
[365100806,1749466251438,-623.80910127,0.00021917,2]
[365100807,1749466251447,-480.0,0.00021917,2]
[365100808,1749466251456,-1343.11,0.00021917,2]
[365100809,1749466251466,-491.56906453,0.00021917,2]
[365100810,1749466251476,-480.0,0.00021917,2]
[365100811,1749466251486,-480.0,0.00021917,2]
[365100812,1749466251496,-480.0,0.00021917,2]
[365100813,1749466251505,-480.0,0.00021917,2]
[365100814,1749466251515,-480.0,0.00021917,2]
[365100815,1749466251525,-1685.73,0.00021917,2]
[365100816,1749466251534,-736.22,0.00021917,2]
[365100817,1749466251544,-984.78,0.00021917,2]
[365100818,1749466251556,-480.0,0.00021917,2]
[365100819,1749466251566,-785.08,0.00021917,2]
[365100820,1749466251575,-480.0,0.00021917,2]
[365100821,1749466251585,-480.0,0.00021917,2]
[365100822,1749466251595,-371.12324044,0.00021917,2]
[365100823,1749466251605,-480.0,0.00021917,2]
[365100824,1749466251614,-425.51965454,0.00021917,2]
[365100825,1749466251624,-480.0,0.00021917,2]
[365100826,1749466251634,-480.0,0.00021917,2]
[365100827,1749466251644,-480.0,0.00021917,2]
[365100828,1749466251654,-1147.91,0.00021917,2]
[365100829,1749466251664,-528.09391225,0.00021917,2]
[365100830,1749466251673,-480.0,0.00021917,2]
[365100831,1749466251684,-480.0,0.00021917,2]
[365100832,1749466251694,-480.0,0.00021917,2]
[365100833,1749466251703,-480.0,0.00021917,2]
[365100834,1749466251714,-480.0,0.00021917,2]
[365100835,1749466251724,-480.0,0.00021917,2]
[365100836,1749466251734,-480.0,0.00021917,2]
[365100837,1749466251745,-181.0028189,0.00021917,2]
[365100838,1749466251755,-480.0,0.00021917,2]
[365100839,1749466251765,-480.0,0.00021917,2]
[365100840,1749466251774,-480.0,0.00021917,2]
[365100841,1749466251784,-1731.15,0.00021917,2]
[365100842,1749466251794,-480.0,0.00021917,2]
[365100843,1749466251803,-480.0,0.00021917,2]
[365100844,1749466251813,-501.50488483,0.00021917,2]
[365100845,1749466251823,-480.0,0.00021917,2]
[365100846,1749466251833,-480.0,0.00021917,2]
[365100847,1749466251844,-1622.22,0.00021917,2]
[365100848,1749466251853,-480.0,0.00021917,2]
[365100849,1749466251863,-483.87530099,0.00021917,2]
[365100850,1749466251874,-499.80234408,0.00021917,2]
[365100851,1749466252003,-494.51795832,0.00021917,2]
[365100852,1749466252014,-500.00740803,0.00021917,2]
[365100853,1749466252023,-486.46714598,0.00021917,2]
[365100854,1749466252033,-480.0,0.00021917,2]
[365100855,1749466252042,-1905.63,0.00021917,2]
[365100856,1749466252052,-480.0,0.00021917,2]
[365100857,1749466252062,-489.64844181,0.00021917,2]
[365100858,1749466252072,-480.0,0.00021917,2]
[365100859,1749466252082,-480.0,0.00021917,2]
[365100860,1749466252093,-480.0,0.00021917,2]
[365100861,1749466252104,-480.0,0.00021917,2]
[365100862,1749466252113,-480.0,0.00021917,2]
[365100863,1749466252124,-477.38128158,0.00021917,2]
[365100864,1749466252134,-480.0,0.00021917,2]
[365100865,1749466252145,-483.74375807,0.00021917,2]
[365100866,1749466252155,-480.0,0.00021917,2]
[365100867,1749466252164,-480.0,0.00021917,2]
[365100868,1749466252174,-752.17,0.00021917,2]
[365100869,1749466252184,-482.33226162,0.00021917,2]
[365100870,1749466252196,-480.0,0.00021917,2]
[365100871,1749466252206,-460.0,0.00021917,2]
[365100872,1749466252216,-480.0,0.00021917,2]
[365100873,1749466252225,-480.0,0.00021917,2]
[365100874,1749466252234,-460.0,0.00021917,2]
[365100875,1749466252243,-480.0,0.00021917,2]
[365100876,1749466252252,-480.0,0.00021917,2]
[365100877,1749466252260,-480.0,0.00021917,2]
[365100878,1749466252270,-489.1442594,0.00021917,2]
[365100879,1749466252279,-318.64138125,0.00021917,2]
[365100880,1749466252288,-480.0,0.00021917,2]
[365100881,1749466252296,-250.0,0.00021917,2]
[365100882,1749466252305,-480.0,0.00021917,2]
[365100883,1749466252314,-480.0,0.00021917,2]
[365100884,1749466252323,-506.3636021,0.00021917,2]
[365100885,1749466252331,-480.0,0.00021917,2]
[365100886,1749466252341,-480.0,0.00021917,2]
[365100887,1749466252350,-308.31162509,0.00021917,2]
[365100888,1749466252359,-480.0,0.00021917,2]
[365100889,1749466252370,-948.03,0.00021917,2]
[365100890,1749466252379,-480.0,0.00021917,2]
[365100891,1749466252389,-480.0,0.00021917,2]
[365100892,1749466252398,-480.0,0.00021917,2]
[365100893,1749466252408,-480.0,0.00021917,2]
[365100894,1749466252422,-420.0,0.00021917,2]
[365100895,1749466252433,-460.0,0.00021917,2]
[365100896,1749466252443,-480.0,0.00021917,2]
[365100897,1749466252453,-480.0,0.00021917,2]
[365100898,1749466252462,-520.83003109,0.00021917,2]
[365100899,1749466252471,-480.0,0.00021917,2]
[365100900,1749466252481,-480.0,0.00021917,2]
[365100901,1749466252492,-480.0,0.00021917,2]
[365100902,1749466252501,-480.0,0.00021917,2]
[365100903,1749466252511,-480.0,0.00021917,2]
[365100904,1749466252521,-480.0,0.00021917,2]
[365100905,1749466252530,-431.38760246,0.00021917,2]
[365100906,1749466252540,-480.0,0.00021917,2]
[365100907,1749466252549,-480.0,0.00021917,2]
[365100908,1749466252563,-480.0,0.00021917,2]
[365100909,1749466252572,-480.0,0.00021917,2]
[365100910,1749466252582,-879.54,0.00021917,2]
[365100911,1749466252594,-480.0,0.00021917,2]
[365100912,1749466252604,-781.48,0.00021917,2]
[365100913,1749466252613,-774.82,0.00021917,2]
[365100914,1749466252622,-601.8,0.00021917,2]
[365100915,1749466252634,-480.0,0.00021917,2]
[365100916,1749466252644,-480.0,0.00021917,2]
[365100917,1749466252653,-500.0,0.00021917,2]
[365100918,1749466252662,-480.0,0.00021917,2]
[365100919,1749466252671,-13311.79,0.00021917,2]
[365100920,1749466252680,-13311.79,0.00021917,2]
[365100921,1749466252688,-13311.79,0.00021917,2]
[365100922,1749466252697,-13311.79,0.00021917,2]
[365100923,1749466252707,-13311.79,0.00021917,2]
[365100924,1749466252715,-13311.79,0.00021917,2]
[365100925,1749466252724,-480.0,0.00021917,2]
[365100926,1749466252732,-13311.79,0.00021917,2]
[365100927,1749466252742,-480.0,0.00021917,2]
[365100928,1749466252751,-13311.79,0.00021917,2]
[365100929,1749466252760,-488.80105212,0.00021917,2]
[365100930,1749466252770,-13311.79,0.00021917,2]
[365100931,1749466252780,-13311.79,0.00021917,2]
[365100932,1749466252789,-480.0,0.00021917,2]
[365100933,1749466252799,-480.0,0.00021917,2]
[365100934,1749466252808,-480.0,0.00021917,2]
[365100935,1749466252818,-13311.79,0.00021917,2]
[365100936,1749466252827,-13311.79,0.00021917,2]
[365100937,1749466252837,-13311.79,0.00021917,2]
[365100938,1749466252846,-13311.79,0.00021917,2]
[365100939,1749466252855,-13311.79,0.00021917,2]
[365100940,1749466252869,-13311.79,0.00021917,2]
[365100941,1749466252878,-13311.79,0.00021917,2]
[365100942,1749466252887,-480.0,0.00021917,2]
[365100943,1749466252896,-13311.79,0.00021917,2]
[365100944,1749466252905,-13311.79,0.00021917,2]
[365100945,1749466252915,-13311.79,0.00021917,2]
[365100946,1749466252924,-13311.79,0.00021917,2]
[365100947,1749466252934,-480.0,0.00021917,2]
[365100948,1749466252944,-13311.79,0.00021917,2]
[365100949,1749466252953,-460.0,0.00021917,2]
[365100950,1749466252963,-13311.79,0.00021917,2]
[365100951,1749466252972,-13311.97984122,0.00021917,2]
[365100952,1749466252982,-480.0,0.00021917,2]
[365100953,1749466252992,-481.7105652,0.00021917,2]
[365100954,1749466253001,-460.0,0.00021917,2]
[365100955,1749466253010,-480.0,0.00021917,2]
[365100956,1749466253020,-480.0,0.00021917,2]
[365100957,1749466253029,-1887.08,0.00021917,2]
[365100958,1749466253039,-480.0,0.00021917,2]
[365100959,1749466253048,-2016.63,0.00021917,2]
[365100960,1749466253058,-482.77126045,0.00021917,2]
[365100961,1749466253067,-611.81,0.00021917,2]
[365100962,1749466253077,-480.0,0.00021917,2]
[365100963,1749466253087,-480.0,0.00021917,2]
[365100964,1749466253096,-480.0,0.00021917,2]
[365100965,1749466253105,-480.0,0.00021917,2]
[365100966,1749466253115,-251.27607572,0.00021917,2]
[365100967,1749466253124,-853.62,0.00021917,2]
[365100968,1749466253133,-480.0,0.00021917,2]
[365100969,1749466253143,-480.0,0.00021917,2]
[365100970,1749466253152,-480.0,0.00021917,2]
[365100971,1749466253163,-483.40386196,0.00021917,2]
[365100972,1749466253172,-1543.94,0.00021917,2]
[365100973,1749466253181,-480.0,0.00021917,2]
[365100974,1749466253191,-1456.22,0.00021917,2]
[365100975,1749466253200,-480.0,0.00021917,2]
[365100976,1749466253209,-480.0,0.00021917,2]
[365100977,1749466253218,-480.0,0.00021917,2]
[365100978,1749466253227,-480.0,0.00021917,2]
[365100979,1749466253236,-480.0,0.00021917,2]
[365100980,1749466253245,-1165.32,0.00021917,2]
[365100981,1749466253254,-424.09986405,0.00021917,2]
[365100982,1749466253263,-480.0,0.00021917,2]
[365100983,1749466253272,-480.0,0.00021917,2]
[365100984,1749466253281,-480.0,0.00021917,2]
[365100985,1749466253289,-480.0,0.00021917,2]
[365100986,1749466253296,-480.0,0.00021917,2]
[365100987,1749466253304,-480.0,0.00021917,2]
[365100988,1749466253312,-500.0,0.00021917,2]
[365100989,1749466253320,-480.0,0.00021917,2]
[365100990,1749466253328,-480.0,0.00021917,2]
[365100991,1749466253336,-466.09508119,0.00021917,2]
[365100992,1749466253344,-460.0,0.00021917,2]
[365100993,1749466253352,-480.0,0.00021917,2]
[365100994,1749466253361,-460.0,0.00021917,2]
[365100995,1749466253369,-480.0,0.00021917,2]
[365100996,1749466253376,-288.81390919,0.00021917,2]
[365100997,1749466253385,-423.77627008,0.00021917,2]
[365100998,1749466253393,-480.0,0.00021917,2]
[365100999,1749466253402,-482.95809485,0.00021917,2]
[365101000,1749466253411,-505.29,0.00021917,2]
[365101001,1749466253422,-480.0,0.00021917,2]
[365101002,1749466253432,-480.0,0.00021917,2]
[365101003,1749466253441,-480.0,0.00021917,2]
[365101004,1749466253451,-652.14,0.00021917,2]
[365101005,1749466253461,-1000.0,0.00021917,2]
[365101006,1749466253471,-5024.41203572,0.00021917,2]
[365101007,1749466253481,-702.18,0.00021917,2]
[365101008,1749466253490,-480.0,0.00021917,2]
[365101009,1749466253499,-508.34,0.00021917,2]
[365101010,1749466253509,-471.36999699,0.00021917,2]
[365101011,1749466253519,-539.81605263,0.00021917,2]
[365101012,1749466253528,-704.56,0.00021917,2]
[365101013,1749466253538,-480.0,0.00021917,2]
[365101014,1749466253547,-480.0,0.00021917,2]
[365101015,1749466253561,-480.0,0.00021917,2]
[365101016,1749466253570,-480.0,0.00021917,2]
[365101017,1749466253579,-886.47,0.00021917,2]
[365101018,1749466253588,-468.17028589,0.00021917,2]
[365101019,1749466253598,-480.0,0.00021917,2]
[365101020,1749466253607,-460.0,0.00021917,2]
[365101021,1749466253617,-480.0,0.00021917,2]
[365101022,1749466253627,-460.0,0.00021917,2]
[365101023,1749466253636,-480.0,0.00021917,2]
[365101024,1749466253646,-460.0,0.00021917,2]
[365101025,1749466253655,-788.12,0.00021917,2]
[365101026,1749466253665,-460.0,0.00021917,2]
[365101027,1749466253675,-1780.84,0.00021917,2]
[365101028,1749466253685,-480.0,0.00021917,2]
[365101029,1749466253694,-480.0,0.00021917,2]
[365101030,1749466253704,-691.04,0.00021917,2]
[365101031,1749466253714,-480.0,0.00021917,2]
[365101032,1749466253723,-405.88944654,0.00021917,2]
[365101033,1749466253733,-428.15364908,0.00021917,2]
[365101034,1749466253743,-480.0,0.00021917,2]
[365101035,1749466253753,-480.0,0.00021917,2]
[365101036,1749466253762,-496.54,0.00021917,2]
[365101037,1749466253772,-480.0,0.00021917,2]
[365101038,1749466253782,-542.48,0.00021917,2]
[365101039,1749466253793,-480.0,0.00021917,2]
[365101040,1749466253803,-964.13,0.00021917,2]
[365101041,1749466253812,-480.0,0.00021917,2]
[365101042,1749466253822,-948.79,0.00021917,2]
[365101043,1749466253831,-460.0,0.00021917,2]
[365101044,1749466253841,-460.0,0.00021917,2]
[365101045,1749466253850,-888.57,0.00021917,2]
[365101046,1749466253860,-460.0,0.00021917,2]
[365101047,1749466253870,-480.0,0.00021917,2]
[365101048,1749466253879,-504.64,0.00021917,2]
[365101049,1749466253889,-1636.4,0.00021917,2]
[365101050,1749466253899,-448.56609639,0.00021917,2]
[365101051,1749466253908,-445.98357739,0.00021917,2]
[365101052,1749466253918,-460.0,0.00021917,2]
[365101053,1749466253928,-2361.54,0.00021917,2]
[365101054,1749466253938,-480.0,0.00021917,2]
[365101055,1749466253948,-480.0,0.00021917,2]
[365101056,1749466253957,-460.0,0.00021917,2]
[365101057,1749466253967,-460.0,0.00021917,2]
[365101058,1749466253976,-480.0,0.00021917,2]
[365101059,1749466253987,-693.8,0.00021917,2]
[365101060,1749466253997,-520.28120671,0.00021917,2]
[365101061,1749466254007,-480.0,0.00021917,2]
[365101062,1749466254017,-480.0,0.00021917,2]
[365101063,1749466254027,-647.25,0.00021917,2]
[365101064,1749466254037,-634.65,0.00021917,2]
[365101065,1749466254047,-460.0,0.00021917,2]
[365101066,1749466254057,-2310.21,0.00021917,2]
[365101067,1749466254067,-480.0,0.00021917,2]
[365101068,1749466254076,-886.64,0.00021917,2]
[365101069,1749466254088,-480.0,0.00021917,2]
[365101070,1749466254097,-1125.57,0.00021917,2]
[365101071,1749466254107,-480.0,0.00021917,2]
[365101072,1749466254116,-480.0,0.00021917,2]
[365101073,1749466254126,-480.0,0.00021917,2]
[365101074,1749466254136,-4038.83,0.00021917,2]
[365101075,1749466254146,-503.59,0.00021917,2]
[365101076,1749466254156,-369.81165184,0.00021917,2]
[365101077,1749466254166,-480.0,0.00021917,2]
[365101078,1749466254176,-480.0,0.00021917,2]
[365101079,1749466254186,-460.0,0.00021917,2]
[365101080,1749466254195,-480.0,0.00021917,2]
[365101081,1749466254205,-480.0,0.00021917,2]
[365101082,1749466254215,-427.93739198,0.00021917,2]
[365101083,1749466254224,-4660.31,0.00021917,2]
[365101084,1749466254234,-460.0,0.00021917,2]
[365101085,1749466254244,-480.0,0.00021917,2]
[365101086,1749466254253,-480.0,0.00021917,2]
[365101087,1749466254262,-480.0,0.00021917,2]
[365101088,1749466254272,-1505.03,0.00021917,2]
[365101089,1749466254411,-484.5590565,0.00021917,2]
[365101090,1749466254422,-498.55337311,0.00021917,2]
[365101091,1749466254431,-480.0,0.00021917,2]
[365101092,1749466254441,-480.0,0.00021917,2]
[365101093,1749466254450,-480.0,0.00021917,2]
[365101094,1749466254459,-480.0,0.00021917,2]
[365101095,1749466254469,-480.0,0.00021917,2]
[365101096,1749466254478,-11332.05,0.00021917,2]
[365101097,1749466254488,-480.0,0.00021917,2]
[365101098,1749466254498,-480.0,0.00021917,2]
[365101099,1749466254507,-605.84,0.00021917,2]
[365101100,1749466254516,-480.0,0.00021917,2]
[365101101,1749466254526,-480.0,0.00021917,2]
[365101102,1749466254535,-1244.83,0.00021917,2]
[365101103,1749466254544,-480.0,0.00021917,2]
[365101104,1749466254556,-876.61,0.00021917,2]
[365101105,1749466254566,-480.0,0.00021917,2]
[365101106,1749466254575,-460.0,0.00021917,2]
[365101107,1749466254585,-408.57939757,0.00021917,2]
[365101108,1749466254594,-460.0,0.00021917,2]
[365101109,1749466254604,-480.0,0.00021917,2]
[365101110,1749466254614,-480.0,0.00021917,2]
[365101111,1749466254623,-480.0,0.00021917,2]
[365101112,1749466254632,-3521.36,0.00021917,2]
[365101113,1749466254642,-480.0,0.00021917,2]
[365101114,1749466254651,-480.0,0.00021917,2]
[365101115,1749466254661,-489.66624717,0.00021917,2]
[365101116,1749466254671,-492.79597808,0.00021917,2]
[365101117,1749466254680,-665.13,0.00021917,2]
[365101118,1749466254689,-1706.49,0.00021917,2]
[365101119,1749466254699,-460.0,0.00021917,2]
[365101120,1749466254707,-480.0,0.00021917,2]
[365101121,1749466254717,-480.0,0.00021917,2]
[365101122,1749466254726,-917.76,0.00021917,2]
[365101123,1749466254736,-460.0,0.00021917,2]
[365101124,1749466254745,-480.0,0.00021917,2]
[365101125,1749466254754,-550.27,0.00021917,2]
[365101126,1749466254764,-480.0,0.00021917,2]
[365101127,1749466254773,-607.29,0.00021917,2]
[365101128,1749466254782,-150.375566,0.00021917,2]
[365101129,1749466254792,-612.73868061,0.00021917,2]
[365101130,1749466254801,-472.26315404,0.00021917,2]
[365101131,1749466254810,-480.0,0.00021917,2]
[365101132,1749466254820,-480.0,0.00021917,2]
[365101133,1749466254829,-550.60390058,0.00021917,2]
[365101134,1749466254838,-487.3062438,0.00021917,2]
[365101135,1749466254847,-480.0,0.00021917,2]
[365101136,1749466254857,-484.87756606,0.00021917,2]
[365101137,1749466254866,-306.79837256,0.00021917,2]
[365101138,1749466254875,-285.97430548,0.00021917,2]
[365101139,1749466254884,-1447.01,0.00021917,2]
[365101140,1749466254894,-1374.31,0.00021917,2]
[365101141,1749466254903,-480.0,0.00021917,2]
[365101142,1749466254913,-485.74386601,0.00021917,2]
[365101143,1749466254922,-480.0,0.00021917,2]
[365101144,1749466254932,-851.76,0.00021917,2]
[365101145,1749466254943,-492.16538455,0.00021917,2]
[365101146,1749466254952,-480.0,0.00021917,2]
[365101147,1749466254962,-833.1,0.00021917,2]
[365101148,1749466254971,-480.0,0.00021917,2]
[365101149,1749466254981,-2712.36,0.00021917,2]
[365101150,1749466254991,-1435.61,0.00021917,2]
[365101151,1749466255000,-1035.43,0.00021917,2]
[365101152,1749466255010,-480.0,0.00021917,2]
[365101153,1749466255019,-487.22877357,0.00021917,2]
[365101154,1749466255028,-380.0,0.00021917,2]
[365101155,1749466255037,-154.39474,0.00021917,2]
[365101156,1749466255047,-491.29,0.00021917,2]
[365101157,1749466255057,-460.0,0.00021917,2]
[365101158,1749466255067,-480.0,0.00021917,2]
[365101159,1749466255076,-3521.17,0.00021917,2]
[365101160,1749466255086,-480.0,0.00021917,2]
[365101161,1749466255096,-486.50055348,0.00021917,2]
[365101162,1749466255106,-480.0,0.00021917,2]
[365101163,1749466255115,-480.0,0.00021917,2]
[365101164,1749466255125,-360.0,0.00021917,2]
[365101165,1749466255134,-480.0,0.00021917,2]
[365101166,1749466255144,-488.25576447,0.00021917,2]
[365101167,1749466255153,-4150.23,0.00021917,2]
[365101168,1749466255162,-480.0,0.00021917,2]
[365101169,1749466255172,-480.0,0.00021917,2]
[365101170,1749466255181,-480.0,0.00021917,2]
[365101171,1749466255191,-494.93318585,0.00021917,2]
[365101172,1749466255200,-480.0,0.00021917,2]
[365101173,1749466255209,-1111.08,0.00021917,2]
[365101174,1749466255219,-480.0,0.00021917,2]
[365101175,1749466255228,-537.33,0.00021917,2]
[365101176,1749466255238,-483.53787066,0.00021917,2]
[365101177,1749466255247,-282.24334062,0.00021917,2]
[365101178,1749466255257,-1329.46,0.00021917,2]
[365101179,1749466255267,-480.0,0.00021917,2]
[365101180,1749466255277,-669.48,0.00021917,2]
[365101181,1749466255286,-480.0,0.00021917,2]
[365101182,1749466255296,-480.0,0.00021917,2]
[365101183,1749466255306,-480.0,0.00021917,2]
[365101184,1749466255315,-1918.96,0.00021917,2]
[365101185,1749466255324,-460.0,0.00021917,2]
[365101186,1749466255334,-480.0,0.00021917,2]
[365101187,1749466255344,-480.0,0.00021917,2]
[365101188,1749466255353,-488.00268727,0.00021917,2]
[365101189,1749466255363,-1000.0,0.00021917,2]
[365101190,1749466255372,-444.52636198,0.00021917,2]
[365101191,1749466255382,-705.05,0.00021917,2]
[365101192,1749466255391,-705.05,0.00021917,2]
[365101193,1749466255400,-705.05,0.00021917,2]
[365101194,1749466255410,-480.0,0.00021917,2]
[365101195,1749466255421,-705.05,0.00021917,2]
[365101196,1749466255431,-705.05,0.00021917,2]
[365101197,1749466255440,-480.0,0.00021917,2]
[365101198,1749466255450,-705.05,0.00021917,2]
[365101199,1749466255460,-705.05,0.00021917,2]
[365101200,1749466255470,-705.05,0.00021917,2]
[365101201,1749466255479,-480.0,0.00021917,2]
[365101202,1749466255489,-2996.66,0.00021917,2]
[365101203,1749466255499,-705.05,0.00021917,2]
[365101204,1749466255509,-705.05,0.00021917,2]
[365101205,1749466255519,-705.05,0.00021917,2]
[365101206,1749466255528,-480.0,0.00021917,2]
[365101207,1749466255537,-705.05,0.00021917,2]
[365101208,1749466255547,-705.05,0.00021917,2]
[365101209,1749466255559,-705.05,0.00021917,2]
[365101210,1749466255569,-2855.94,0.00021917,2]
[365101211,1749466255579,-705.05,0.00021917,2]
[365101212,1749466255588,-705.05,0.00021917,2]
[365101213,1749466255598,-705.05,0.00021917,2]
[365101214,1749466255608,-705.05,0.00021917,2]
[365101215,1749466255617,-705.05,0.00021917,2]
[365101216,1749466255627,-705.05,0.00021917,2]
[365101217,1749466255638,-705.05,0.00021917,2]
[365101218,1749466255648,-705.05,0.00021917,2]
[365101219,1749466255658,-1342.98,0.00021917,2]
[365101220,1749466255667,-402.25288363,0.00021917,2]
[365101221,1749466255677,-705.05,0.00021917,2]
[365101222,1749466255686,-480.0,0.00021917,2]
[365101223,1749466255695,-705.12070908,0.00021917,2]
[365101224,1749466255705,-665.9,0.00021917,2]
[365101225,1749466255715,-1287.21,0.00021917,2]
[365101226,1749466255725,-480.0,0.00021917,2]
[365101227,1749466255734,-480.0,0.00021917,2]
[365101228,1749466255743,-480.0,0.00021917,2]
[365101229,1749466255753,-491.01134746,0.00021917,2]
[365101230,1749466255763,-971.68,0.00021917,2]
[365101231,1749466255773,-480.0,0.00021917,2]
[365101232,1749466255782,-480.0,0.00021917,2]
[365101233,1749466255792,-180.0,0.00021917,2]
[365101234,1749466255802,-10695.91,0.00021917,2]
[365101235,1749466255811,-480.0,0.00021917,2]
[365101236,1749466255821,-480.0,0.00021917,2]
[365101237,1749466255830,-1248.25,0.00021917,2]
[365101238,1749466255840,-480.0,0.00021917,2]
[365101239,1749466255850,-1345.93,0.00021917,2]
[365101240,1749466255859,-480.0,0.00021917,2]
[365101241,1749466255869,-480.0,0.00021917,2]
[365101242,1749466255878,-358.76453364,0.00021917,2]
[365101243,1749466255887,-170.40433913,0.00021917,2]
[365101244,1749466255896,-286.56788474,0.00021917,2]
[365101245,1749466255906,-480.0,0.00021917,2]
[365101246,1749466255915,-480.0,0.00021917,2]
[365101247,1749466255924,-426.52362575,0.00021917,2]
[365101248,1749466255933,-480.0,0.00021917,2]
[365101249,1749466255942,-480.0,0.00021917,2]
[365101250,1749466255952,-1113.63,0.00021917,2]
[365101251,1749466255961,-460.0,0.00021917,2]
[365101252,1749466255970,-3488.09,0.00021917,2]
[365101253,1749466255979,-3488.09,0.00021917,2]
[365101254,1749466255988,-480.0,0.00021917,2]
[365101255,1749466255997,-3488.09,0.00021917,2]
[365101256,1749466256006,-3488.09,0.00021917,2]
[365101257,1749466256015,-480.0,0.00021917,2]
[365101258,1749466256025,-3488.09,0.00021917,2]
[365101259,1749466256034,-480.0,0.00021917,2]
[365101260,1749466256043,-465.91097042,0.00021917,2]
[365101261,1749466256053,-3488.09,0.00021917,2]
[365101262,1749466256062,-420.0,0.00021917,2]
[365101263,1749466256071,-2867.19,0.00021917,2]
[365101264,1749466256079,-3488.09,0.00021917,2]
[365101265,1749466256089,-480.0,0.00021917,2]
[365101266,1749466256098,-975.17,0.00021917,2]
[365101267,1749466256107,-623.82,0.00021917,2]
[365101268,1749466256117,-480.0,0.00021917,2]
[365101269,1749466256127,-3488.09,0.00021917,2]
[365101270,1749466256136,-460.0,0.00021917,2]
[365101271,1749466256146,-495.20755165,0.00021917,2]